fUSD/lending_fUSD_20260413
["ID","MTS","AMOUNT","RATE_DAILY","PERIOD"]
[420368575,1776041563417,-500.0,0.00038904,15]
[420368576,1776041563427,-849.06,0.00038904,7]
[420368577,1776041563441,-1369.55,0.00038904,15]
[420368578,1776041563452,-326.19,0.00038904,15]
[420368579,1776041563464,-500.0,0.00038904,15]
[420368580,1776041563478,-1237.88,0.00038904,15]
[420368581,1776041563490,-563.87,0.00038904,15]
[420368582,1776041563501,-500.0,0.00038904,15]
[420368583,1776041563513,-788.01,0.00038904,15]
[420368584,1776041563532,-500.0,0.00038904,15]
[420368585,1776041563543,-568.15,0.00038904,15]
[420368586,1776041563557,-500.0,0.00038904,15]
[420368587,1776041563575,-500.0,0.00038904,15]
[420368588,1776041563587,-500.0,0.00038904,15]
[420368589,1776041563599,-500.0,0.00038904,15]
[420368590,1776041563618,-3366.71,0.00038904,15]
[420368591,1776041563630,-923.98,0.00038904,15]
[420368592,1776041563643,-345.03356884,0.00038904,15]
[420368593,1776041563663,-256.29684332,0.00038904,15]
[420368594,1776041563675,-2088.77,0.00038904,15]
[420368595,1776041563689,-549.15,0.00038904,15]
[420368596,1776041563708,-500.0,0.00038904,15]
[420368597,1776041563723,-500.0,0.00038904,15]
[420368598,1776041563739,-500.0,0.00038904,15]
[420368599,1776041563752,-500.0,0.00038904,15]
[420368600,1776041563770,-1268.03,0.00038904,15]
[420368601,1776041563783,-500.0,0.00038904,15]
[420368602,1776041563814,-500.0,0.00038904,15]
[420368603,1776041563826,-558.39,0.00038904,15]
[420368604,1776041563844,-500.0,0.00038904,15]
[420368605,1776041563873,-500.0,0.00038904,15]
[420368606,1776041563886,-1218.49,0.00038904,15]
[420368607,1776041563910,-4311.22,0.00038904,15]
[420368608,1776041563930,-788.69,0.00038904,15]
[420368609,1776041563942,-707.14,0.00038904,15]
[420368610,1776041563956,-500.0,0.00038904,15]
[420368611,1776041563971,-500.0,0.00038904,15]
[420368612,1776041563983,-654.55,0.00038904,15]
[420368613,1776041564003,-500.0,0.00038904,15]
[420368614,1776041564017,-1877.62,0.00038904,15]
[420368615,1776041564032,-500.0,0.00038904,15]
[420368616,1776041564042,-1985.43,0.00038904,15]
[420368617,1776041564053,-500.0,0.00038904,12]
[420368618,1776041564071,-1450.56,0.00038904,15]
[420368619,1776041564082,-1299.61,0.00038904,15]
[420368620,1776041564092,-500.0,0.00038904,15]
[420368621,1776041564110,-919.99,0.00038904,15]
[420368622,1776041564129,-500.0,0.00038904,15]
[420368623,1776041564141,-500.0,0.00038904,15]
[420368624,1776041564161,-500.0,0.00038904,15]
[420368625,1776041564173,-2075.21,0.00038904,15]
[420368626,1776041564183,-500.0,0.00038904,15]
[420368627,1776041564209,-500.0,0.00038904,15]
[420368628,1776041564239,-500.0,0.00038904,15]
[420368629,1776041564250,-524.97238227,0.00038904,15]
[420368630,1776041564266,-534.23,0.00038904,15]
[420368631,1776041564289,-1289.28,0.00038904,15]
[420368632,1776041564299,-500.0,0.00038904,15]
[420368633,1776041564338,-500.0,0.00038904,15]
[420368634,1776041564348,-500.0,0.00038904,15]
[420368635,1776041564379,-500.0,0.00038904,15]
[420368636,1776041564390,-500.0,0.00038904,15]
[420368637,1776041564415,-1427.37,0.00038904,15]
[420368638,1776041564426,-1530.82,0.00038904,15]
[420368639,1776041564436,-500.0,0.00038904,15]
[420368640,1776041564454,-500.0,0.00038904,15]
[420368641,1776041564468,-2046.09,0.00038904,15]
[420368642,1776041564486,-500.0,0.00038904,15]
[420368643,1776041564498,-500.0,0.00038904,15]
[420368644,1776041564511,-2529.22,0.00038904,15]
[420368645,1776041564526,-745.28,0.00038904,15]
[420368646,1776041564546,-808.37,0.00038904,15]
[420368647,1776041564559,-2416.53,0.00038904,15]
[420368648,1776041564581,-906.56,0.00038904,15]
[420368649,1776041564594,-523.37,0.00038904,15]
[420368650,1776041564607,-500.0,0.00038904,15]
[420368651,1776041564650,-500.0,0.00038904,15]
[420368652,1776041564662,-504.19,0.00038904,15]
[420368653,1776041564678,-500.0,0.00038904,15]
[420368654,1776041564697,-500.0,0.00038904,15]
[420368655,1776041564711,-500.0,0.00038904,15]
[420368656,1776041564737,-500.0,0.00038904,15]
[420368657,1776041564749,-500.0,0.00038904,15]
[420368658,1776041564760,-500.0,0.00038904,15]
[420368659,1776041564783,-2898.73,0.00038904,15]
[420368660,1776041564813,-500.0,0.00038904,15]
[420368661,1776041564826,-243.56650922,0.00038904,15]
[420368662,1776041564848,-2221.27,0.00038904,15]
[420368663,1776041564876,-500.0,0.00038904,15]
[420368664,1776041564900,-1447.93,0.00038904,15]
[420368665,1776041564910,-500.0,0.00038904,15]
[420368666,1776041564922,-500.0,0.00038904,15]
[420368667,1776041564946,-819.82,0.00038904,15]
[420368668,1776041564958,-739.29,0.00038904,15]
[420368669,1776041564974,-500.0,0.00038904,15]
[420368670,1776041564992,-1481.69,0.00038904,15]
[420368671,1776041565007,-500.0,0.00038904,15]
[420368672,1776041565027,-500.0,0.00038904,15]
[420368673,1776041565044,-500.0,0.00038904,15]
[420368674,1776041565057,-1386.95,0.00038904,15]
[420368675,1776041565067,-504.87,0.00038904,15]
[420368676,1776041565078,-500.0,0.00038904,15]
[420368677,1776041565091,-1307.69,0.00038904,15]
[420368678,1776041565102,-500.0,0.00038904,15]
[420368679,1776041565112,-514.76291115,0.00038904,15]
[420368680,1776041565128,-500.0,0.00038904,15]
[420368681,1776041565138,-632.93,0.00038904,15]
[420368682,1776041565150,-500.0,0.00038904,15]
[420368683,1776041565162,-500.0,0.00038904,15]
[420368684,1776041565177,-458.99342053,0.00038904,15]
[420368685,1776041565189,-2461.87,0.00038904,15]
[420368686,1776041565202,-500.0,0.00038904,14]
[420368687,1776041565214,-500.0,0.00038904,5]
[420368688,1776041565237,-644.51,0.00038904,15]
[420368689,1776041565251,-1333.0,0.00038904,15]
[420368690,1776041565262,-1064.34,0.00038904,15]
[420368691,1776041565277,-761.34,0.00038904,15]
[420368692,1776041565294,-1670.47,0.00038904,15]
[420368693,1776041565306,-493.332339,0.00038904,15]
[420368694,1776041565329,-1111.33,0.00038904,15]
[420368695,1776041565341,-500.0,0.00038904,15]
[420368696,1776041565351,-500.0,0.00038904,15]
[420368697,1776041565365,-808.18,0.00038904,15]
[420368698,1776041565382,-548.68,0.00038904,15]
[420368699,1776041565392,-514.06957151,0.00038904,15]
[420368700,1776041565411,-921.66,0.00038904,15]
[420368701,1776041565427,-500.0,0.00038904,15]
[420368702,1776041565437,-500.0,0.00038904,15]
[420368703,1776041565458,-500.0,0.00038904,15]
[420368704,1776041565470,-500.0,0.00038904,15]
[420368705,1776041565484,-500.0,0.00038904,15]
[420368706,1776041565499,-500.0,0.00038904,15]
[420368707,1776041565512,-1561.09,0.00038904,15]
[420368708,1776041565530,-500.0,0.00038904,15]
[420368709,1776041565543,-1822.44,0.00038904,15]
[420368710,1776041565554,-500.0,0.00038904,15]
[420368711,1776041565574,-500.0,0.00038904,15]
[420368712,1776041565585,-500.0,0.00038904,15]
[420368713,1776041565596,-887.2,0.00038904,15]
[420368714,1776041565606,-810.27,0.00038904,10]
[420368715,1776041565629,-1212.99,0.00038904,15]
[420368716,1776041565641,-500.0,0.00038904,15]
[420368717,1776041565665,-1687.08,0.00038904,15]
[420368718,1776041565686,-499.0,0.00038904,15]
[420368719,1776041565706,-836.17,0.00038904,15]
[420368720,1776041565732,-561.86649455,0.00038904,15]
[420368721,1776041565742,-500.0,0.00038904,15]
[420368722,1776041565760,-616.32,0.00038904,15]
[420368723,1776041565789,-500.0,0.00038904,15]
[420368724,1776041565800,-500.0,0.00038904,15]
[420368725,1776041565811,-500.0,0.00038904,15]
[420368726,1776041565839,-500.0,0.00038904,15]
[420368727,1776041566230,-500.0,0.00038904,15]
[420368728,1776041566257,-500.0,0.00038904,15]
[420368729,1776041566273,-990.96,0.00038904,15]
[420368730,1776041566286,-500.0,0.00038904,15]
[420368731,1776041566307,-500.0,0.00038904,15]
[420368732,1776041566331,-473.85144033,0.00038904,15]
[420368733,1776041566351,-1300.76,0.00038904,15]
[420368734,1776041566370,-636.59,0.00038904,15]
[420368735,1776041566386,-500.0,0.00038904,15]
[420368736,1776041566416,-500.0,0.00038904,15]
[420368737,1776041566433,-1007.92,0.00038904,15]
[420368738,1776041566446,-500.0,0.00038904,15]
[420368739,1776041566474,-500.0,0.00038904,15]
[420368740,1776041566486,-1138.59,0.00038904,15]
[420368741,1776041566499,-1730.4,0.00038904,15]
[420368742,1776041566528,-1000.31,0.00038904,15]
[420368743,1776041566543,-903.84,0.00038904,15]
[420368744,1776041566558,-619.67,0.00038904,15]
[420368745,1776041566574,-500.0,0.00038904,15]
[420368746,1776041566610,-500.0,0.00038904,15]
[420368747,1776041566622,-1778.75,0.00038904,15]
[420368748,1776041566643,-1153.37,0.00038904,15]
[420368749,1776041566654,-1092.35,0.00038904,15]
[420368750,1776041566667,-500.0,0.00038904,15]
[420368751,1776041566695,-500.0,0.00038904,15]
[420368752,1776041566706,-500.0,0.00038904,15]
[420368753,1776041566738,-500.0,0.00038904,15]
[420368754,1776041566774,-500.0,0.00038904,15]
[420368755,1776041566788,-500.0,0.00038904,15]
[420368756,1776041566815,-500.0,0.00038904,15]
[420368757,1776041566826,-1843.04,0.00038904,15]
[420368758,1776041566835,-500.0,0.00038904,15]
[420368759,1776041566847,-500.0,0.00038904,15]
[420368760,1776041566857,-500.0,0.00038904,15]
[420368761,1776041566868,-500.0,0.00038904,15]
[420368762,1776041566877,-503.0,0.00038904,15]
[420368763,1776041566886,-500.0,0.00038904,15]
[420368764,1776041566901,-500.0,0.00038904,15]
[420368765,1776041566910,-656.69,0.00038904,15]
[420368766,1776041566919,-500.0,0.00038904,15]
[420368767,1776041566929,-500.0,0.00038904,15]
[420368768,1776041566942,-1937.81,0.00038904,15]
[420368769,1776041566951,-508.01119052,0.00038904,15]
[420368770,1776041566960,-754.33,0.00038904,15]
[420368771,1776041566970,-500.0,0.00038904,15]
[420368772,1776041566982,-1714.04,0.00038904,15]
[420368773,1776041566993,-1292.76,0.00038904,15]
[420368774,1776041567002,-500.0,0.00038904,15]
[420368775,1776041567021,-500.0,0.00038904,15]
[420368776,1776041567031,-500.0,0.00038904,15]
[420368777,1776041567041,-1586.56,0.00038904,15]
[420368778,1776041567054,-500.0,0.00038904,15]
[420368779,1776041567068,-500.0,0.00038904,15]
[420368780,1776041567078,-531.5,0.00038904,15]
[420368781,1776041567089,-1395.23,0.00038904,15]
[420368782,1776041567106,-1508.28,0.00038904,15]
[420368783,1776041567115,-1383.28,0.00038904,15]
[420368784,1776041567125,-500.0,0.00038904,15]
[420368785,1776041567149,-1557.25,0.00038904,15]
[420368786,1776041567159,-521.36,0.00038904,15]
[420368787,1776041567173,-500.0,0.00038904,15]
[420368788,1776041567189,-1577.69,0.00038904,15]
[420368789,1776041567204,-2158.93,0.00038904,15]
[420368790,1776041567217,-933.09,0.00038904,15]
[420368791,1776041567240,-805.64,0.00038904,15]
[420368792,1776041567249,-551.92,0.00038904,15]
[420368793,1776041567275,-781.58,0.00038904,15]
[420368794,1776041567284,-500.0,0.00038904,15]
[420368795,1776041567313,-500.0,0.00038904,15]
[420368796,1776041567323,-1216.47,0.00038904,15]
[420368797,1776041567342,-500.0,0.00038904,15]
[420368798,1776041567356,-500.0,0.00038904,15]
[420368799,1776041567365,-500.0,0.00038904,15]
[420368800,1776041567376,-500.0,0.00038904,15]
[420368801,1776041567403,-500.0,0.00038904,15]
[420368802,1776041567412,-1203.91,0.00038904,15]
[420368803,1776041567428,-615.42994872,0.00038904,15]
[420368804,1776041567445,-665.94,0.00038904,15]
[420368805,1776041567472,-500.0,0.00038904,15]
[420368806,1776041567499,-1346.41,0.00038904,15]
[420368807,1776041567510,-500.0,0.00038904,15]
[420368808,1776041567525,-500.0,0.00038904,15]
[420368809,1776041567564,-500.0,0.00038904,15]
[420368810,1776041567574,-3502.27,0.00038904,15]
[420368811,1776041567591,-1160.63,0.00038904,15]
[420368812,1776041567631,-500.0,0.00038904,15]
[420368813,1776041567655,-500.0,0.00038904,15]
[420368814,1776041567665,-2492.69,0.00038904,15]
[420368815,1776041567692,-812.32,0.00038904,15]
[420368816,1776041567701,-500.0,0.00038904,15]
[420368817,1776041567711,-500.0,0.00038904,15]
[420368818,1776041567743,-713.05,0.00038904,15]
[420368819,1776041567759,-2542.2,0.00038904,15]
[420368820,1776041567770,-500.0,0.00038904,15]
[420368821,1776041567786,-513.27,0.00038904,15]
[420368822,1776041567801,-500.0,0.00038904,15]
[420368823,1776041567812,-500.0,0.00038904,15]
[420368824,1776041567826,-857.17,0.00038904,15]
[420368825,1776041567843,-767.53,0.00038904,15]
[420368826,1776041567854,-1949.22,0.00038904,15]
[420368827,1776041567871,-500.0,0.00038904,15]
[420368828,1776041567884,-500.0,0.00038904,15]
[420368829,1776041567894,-2000.83,0.00038904,15]
[420368830,1776041567912,-1020.08,0.00038904,15]
[420368831,1776041567926,-671.18,0.00038904,15]
[420368832,1776041567944,-500.0,0.00038904,15]
[420368833,1776041567954,-500.0,0.00038904,15]
[420368834,1776041567967,-1814.36,0.00038904,15]
[420368835,1776041567986,-500.0,0.00038904,15]
[420368836,1776041567996,-500.0,0.00038904,15]
[420368837,1776041568005,-2557.75,0.00038904,15]
[420368838,1776041568028,-1239.9,0.00038904,15]
[420368839,1776041568045,-500.0,0.00038904,15]
[420368840,1776041568054,-1024.03,0.00038904,15]
[420368841,1776041568069,-1654.08,0.00038904,15]
[420368842,1776041568081,-2033.34,0.00038904,15]
[420368843,1776041568090,-500.0,0.00038904,15]
[420368844,1776041568112,-500.0,0.00038904,15]
[420368845,1776041568122,-500.0,0.00038904,15]
[420368846,1776041568146,-500.0,0.00038904,15]
[420368847,1776041568156,-1913.26,0.00038904,15]
[420368848,1776041568166,-500.0,0.00038904,15]
[420368849,1776041568201,-2148.07,0.00038904,15]
[420368850,1776041568214,-448.95330215,0.00038904,15]
[420368851,1776041568224,-500.0,0.00038904,15]
[420368852,1776041568249,-1846.32,0.00038904,15]
[420368853,1776041568259,-500.0,0.00038904,15]
[420368854,1776041568275,-500.0,0.00038904,15]
[420368855,1776041568297,-500.0,0.00038904,15]
[420368856,1776041568310,-1029.57,0.00038904,15]
[420368857,1776041568340,-500.0,0.00038904,15]
[420368858,1776041568350,-515.85,0.00038904,15]
[420368859,1776041568382,-667.8,0.00038904,15]
[420368860,1776041568392,-1978.02,0.00038904,15]
[420368861,1776041568424,-500.0,0.00038904,15]
[420368862,1776041568434,-500.0,0.00038904,15]
[420368863,1776041568451,-500.0,0.00038904,15]
[420368864,1776041568464,-552.59895519,0.00038904,15]
[420368865,1776041568474,-500.0,0.00038904,15]
[420368866,1776041568488,-500.0,0.00038904,15]
[420368867,1776041568500,-2182.18,0.00038904,15]
[420368868,1776041568514,-500.0,0.00038904,15]
[420368869,1776041568524,-2335.03,0.00038904,15]
[420368870,1776041568538,-1212.24,0.00038904,15]
[420368871,1776041568549,-500.0,0.00038904,15]
[420368872,1776041568561,-1195.42,0.00038904,15]
[420368873,1776041568571,-500.0,0.00038904,15]
[420368874,1776041568585,-500.0,0.00038904,15]
[420368875,1776041568594,-1419.56,0.00038904,15]
[420368876,1776041568612,-1692.69,0.00038904,15]
[420368877,1776041568622,-606.26,0.00038904,15]
[420368878,1776041568632,-500.0,0.00038904,15]
[420368879,1776041568649,-500.0,0.00038904,15]
[420368880,1776041568658,-500.0,0.00038904,15]
[420368881,1776041568667,-884.21,0.00038904,15]
[420368882,1776041568679,-500.0,0.00038904,15]
[420368883,1776041568689,-500.0,0.00038904,15]
[420368884,1776041568699,-500.0,0.00038904,15]
[420368885,1776041568717,-500.0,0.00038904,15]
[420368886,1776041568726,-500.0,0.00038904,15]
[420368887,1776041568736,-1649.72,0.00038904,15]
[420368888,1776041568753,-500.0,0.00038904,15]
[420368889,1776041568764,-621.97,0.00038904,15]
[420368890,1776041568773,-559.48,0.00038904,15]
[420368891,1776041568790,-1537.45,0.00038904,15]
[420368892,1776041568810,-500.0,0.00038904,15]
[420368893,1776041568821,-1130.48,0.00038904,15]
[420368894,1776041568835,-500.0,0.00038904,15]
[420368895,1776041568849,-500.0,0.00038904,15]
[420368896,1776041568858,-870.95,0.00038904,15]
[420368897,1776041568870,-500.0,0.00038904,15]
[420368898,1776041568880,-500.0,0.00038904,15]
[420368899,1776041568913,-500.0,0.00038904,15]
[420368900,1776041568926,-706.59,0.00038904,15]
[420368901,1776041568934,-687.5,0.00038904,15]
[420368902,1776041568964,-629.42,0.00038904,15]
[420368903,1776041568974,-500.0,0.00038904,15]
[420368904,1776041568983,-500.0,0.00038904,15]
[420368905,1776041569014,-500.0,0.00038904,15]
[420368906,1776041569043,-1620.29,0.00038904,15]
[420368907,1776041569053,-2507.84,0.00038904,15]
[420368908,1776041569063,-730.08,0.00038904,15]
[420368909,1776041569088,-500.0,0.00038904,15]
[420368910,1776041569098,-500.0,0.00038904,15]
[420368911,1776041569107,-1791.97,0.00038904,15]
[420368912,1776041569124,-620.62,0.00038904,15]
[420368913,1776041569135,-5639.6,0.00038904,15]
[420368914,1776041569146,-500.0,0.00038904,15]
[420368915,1776041569162,-595.83,0.00038904,15]
[420368916,1776041569171,-500.0,0.00038904,15]
[420368917,1776041569180,-532.56,0.00038904,15]
[420368918,1776041569193,-500.0,0.00038904,15]
[420368919,1776041569207,-791.1,0.00038904,15]
[420368920,1776041569217,-1272.74,0.00038904,15]
[420368921,1776041569226,-689.29,0.00038904,15]
[420368922,1776041569242,-500.0,0.00038904,15]
[420368923,1776041569255,-507.04,0.00038904,15]
[420368924,1776041569267,-500.0,0.00038904,15]
[420368925,1776041569280,-774.01,0.00038904,15]
[420368926,1776041569289,-1988.49,0.00038904,15]
[420368927,1776041569301,-500.0,0.00038904,15]
[420368928,1776041569311,-1059.84,0.00038904,15]
[420368929,1776041569323,-500.0,0.00038904,15]
[420368930,1776041569333,-500.0,0.00038904,15]
[420368931,1776041569343,-500.0,0.00038904,15]
[420368932,1776041569355,-525.86,0.00038904,15]
[420368933,1776041569366,-1410.63,0.00038904,15]
[420368934,1776041569377,-2601.05,0.00038904,15]
[420368935,1776041569395,-1360.07,0.00038904,15]
[420368936,1776041569404,-500.0,0.00038904,15]
[420368937,1776041569415,-418.45178417,0.00038904,15]
[420368938,1776041569432,-500.0,0.00038904,15]
[420368939,1776041569444,-500.0,0.00038904,15]
[420368940,1776041569453,-544.4,0.00038904,15]
[420368941,1776041569467,-500.0,0.00038904,15]
[420368942,1776041569495,-2602.21,0.00038904,15]
[420368943,1776041569504,-588.56129339,0.00038904,15]
[420368944,1776041569519,-1246.17,0.00038904,15]
[420368945,1776041569530,-545.0,0.00038904,15]
[420368946,1776041569561,-1431.19,0.00038904,15]
[420368947,1776041569571,-910.09,0.00038904,15]
[420368948,1776041569583,-709.26,0.00038904,15]
[420368949,1776041569598,-825.37,0.00038904,15]
[420368950,1776041569612,-1026.91,0.00038904,15]
[420368951,1776041569623,-500.0,0.00038904,15]
[420368952,1776041569641,-1431.24,0.00038904,15]
[420368953,1776041569650,-2532.94,0.00038904,15]
[420368954,1776041569669,-500.0,0.00038904,15]
[420368955,1776041569683,-500.0,0.00038904,15]
[420368956,1776041569695,-241.55865821,0.00038904,15]
[420368957,1776041569713,-500.0,0.00038904,15]
[420368958,1776041569727,-730.35,0.00038904,15]
[420368959,1776041569738,-4735.33,0.00038904,15]
[420368960,1776041569754,-900.75,0.00038904,15]
[420368961,1776041569768,-5584.03,0.00038904,15]
[420368962,1776041569782,-1104.11,0.00038904,15]
[420368963,1776041569793,-857.59,0.00038904,15]
[420368964,1776041569806,-625.0224239,0.00038904,15]
[420368965,1776041569825,-500.0,0.00038904,15]
[420368966,1776041569851,-500.0,0.00038904,15]
[420368967,1776041569860,-500.0,0.00038904,15]
[420368968,1776041569869,-1034.64,0.00038904,15]
[420368969,1776041569880,-815.99,0.00038904,15]
[420368970,1776041569897,-868.13,0.00038904,15]
[420368971,1776041569906,-957.03,0.00038904,15]
[420368972,1776041569915,-1561.56,0.00038904,15]
[420368973,1776041569927,-523.62,0.00038904,2]
[420368974,1776041569951,-500.0,0.00038904,15]
[420368975,1776041569960,-500.0,0.00038904,15]
[420368976,1776041569989,-500.0,0.00038904,15]
[420368977,1776041569998,-647.72,0.00038904,15]
[420368978,1776041570014,-500.0,0.00038904,15]
[420368979,1776041570042,-1136.23,0.00038904,15]
[420368980,1776041570062,-1822.38,0.00038904,15]
[420368981,1776041570079,-500.0,0.00038904,15]
[420368982,1776041570096,-690.84,0.00038904,15]
[420368983,1776041570115,-904.8,0.00038904,15]
[420368984,1776041570125,-2160.91,0.00038904,15]
[420368985,1776041570140,-634.41,0.00038904,15]
[420368986,1776041570158,-500.0,0.00038904,15]
[420368987,1776041570167,-939.32,0.00038904,15]
[420368988,1776041570204,-1241.9,0.00038904,15]
[420368989,1776041570234,-1402.95,0.00038904,15]
[420368990,1776041570246,-500.0,0.00038904,15]
[420368991,1776041570273,-740.92,0.00038904,15]
[420368992,1776041570309,-500.0,0.00038904,15]
[420368993,1776041570340,-3106.17,0.00038904,15]
[420368994,1776041570377,-1400.48,0.00038904,15]
[420368995,1776041570411,-1399.26,0.00038904,15]
[420368996,1776041570438,-500.0,0.00038904,15]
[420368997,1776041570482,-500.0,0.00038904,15]
[420368998,1776041570495,-3891.46,0.00038904,15]
[420368999,1776041570526,-500.0,0.00038904,15]
[420369000,1776041570552,-1343.25,0.00038904,15]
[420369001,1776041570575,-871.08,0.00038904,15]
[420369002,1776041570591,-500.0,0.00038904,15]
[420369003,1776041570616,-500.0,0.00038904,15]
[420369004,1776041570628,-500.0,0.00038904,15]
[420369005,1776041570646,-3348.65,0.00038904,15]
[420369006,1776041570664,-500.0,0.00038904,15]
[420369007,1776041570680,-554.78170837,0.00038904,15]
[420369008,1776041570696,-500.0,0.00038904,15]
[420369009,1776041570717,-623.58,0.00038904,15]
[420369010,1776041570736,-1764.73,0.00038904,15]
[420369011,1776041570750,-500.0,0.00038904,15]
[420369012,1776041570771,-605.34,0.00038904,15]
[420369013,1776041570788,-500.0,0.00038904,15]
[420369014,1776041570804,-1105.88,0.00038904,15]
[420369015,1776041570834,-523.38,0.00038904,15]
[420369016,1776041570855,-500.0,0.00038904,15]
[420369017,1776041570876,-2858.64,0.00038904,15]
[420369018,1776041570903,-500.0,0.00038904,15]
[420369019,1776041570920,-500.0,0.00038904,15]
[420369020,1776041570938,-500.0,0.00038904,15]
[420369021,1776041570958,-500.0,0.00038904,15]
[420369022,1776041570976,-500.0,0.00038904,15]
[420369023,1776041570998,-500.0,0.00038904,15]
[420369024,1776041571014,-1857.91,0.00038904,15]
[420369025,1776041571030,-1970.32,0.00038904,15]
[420369026,1776041571059,-500.0,0.00038904,15]
[420369027,1776041571080,-1096.43,0.00038904,15]
[420369028,1776041571099,-500.0,0.00038904,15]
[420369029,1776041571115,-1151.97,0.00038904,15]
[420369030,1776041571138,-609.08,0.00038904,15]
[420369031,1776041571153,-2001.91,0.00038904,15]
[420369032,1776041571180,-592.53,0.00038904,15]
[420369033,1776041571196,-500.0,0.00038904,15]
[420369034,1776041571221,-2384.68,0.00038904,15]
[420369035,1776041571236,-500.0,0.00038904,15]
[420369036,1776041571258,-1034.02,0.00038904,15]
[420369037,1776041571284,-1344.4,0.00038904,15]
[420369038,1776041571315,-2587.1,0.00038904,15]
[420369039,1776041571341,-1703.71,0.00038904,15]
[420369040,1776041571368,-1594.35,0.00038904,15]
[420369041,1776041571381,-952.18,0.00038904,15]
[420369042,1776041571398,-526.15,0.00038904,15]
[420369043,1776041571427,-1708.56,0.00038904,15]
[420369044,1776041571441,-1390.73,0.00038904,15]
[420369045,1776041571457,-723.29,0.00038904,15]
[420369046,1776041571476,-500.05,0.00038904,15]
[420369047,1776041571491,-500.0,0.00038904,15]
[420369048,1776041571504,-500.0,0.00038904,15]
[420369049,1776041571527,-500.0,0.00038904,15]
[420369050,1776041571542,-500.0,0.00038904,15]
[420369051,1776041571557,-995.87,0.00038904,15]
[420369052,1776041571577,-500.0,0.00038904,15]
[420369053,1776041571594,-1106.06,0.00038904,15]
[420369054,1776041571622,-1283.69,0.00038904,15]
[420369055,1776041571636,-500.0,0.00038904,15]
[420369056,1776041571658,-2291.91,0.00038904,15]
[420369057,1776041571671,-500.0,0.00038904,15]
[420369058,1776041571690,-1055.7,0.00038904,15]
[420369059,1776041571703,-500.0,0.00038904,15]
[420369060,1776041571723,-500.0,0.00038904,15]
[420369061,1776041571738,-560.52222935,0.00038904,15]
[420369062,1776041571758,-513.49020211,0.00038904,15]
[420369063,1776041571775,-500.0,0.00038904,15]
[420369064,1776041571795,-1734.95,0.00038904,15]
[420369065,1776041571810,-403.43855398,0.00038904,15]
[420369066,1776041571833,-500.0,0.00038904,15]
[420369067,1776041571847,-500.0,0.00038904,15]
[420369068,1776041571870,-500.0,0.00038904,15]
[420369069,1776041571893,-1610.52,0.00038904,15]
[420369070,1776041571905,-970.57,0.00038904,15]
[420369071,1776041571929,-500.0,0.00038904,15]
[420369072,1776041571942,-749.82,0.00038904,15]
[420369073,1776041571962,-933.34,0.00038904,15]
[420369074,1776041571985,-500.0,0.00038904,15]